Workbook

Sheet INGRESO DE DATOS
A13: 1. LLENE LA INFORMACIÓN DEL ASEGURADO PROPUESTO:
B15: Nombre del Asegurado Titular | D15: NOMBRE DEL CLIENTE
B17: Número de adultos en la póliza | D17: 2 | F17: Número de niños en la póliza | H17: 2
B19: Edad del Asegurado Titular | D19: 32 | F19: Edad del/la cónyuge | H19: 46
A22: 2. SELECCIONE EL PRODUCTO PARA VER LA COTIZACIÓN CORRESPONDIENTE:
B43: 1 | D43: 1

Sheet Bupa Essential Care
A20: Bupa Essential Care | D20: Nombre del Asegurado Titular | F20: =+'INGRESO DE DATOS'!$D$15 -> NOMBRE DEL CLIENTE
D22: Número de adultos en la póliza | F22: =+'INGRESO DE DATOS'!$D$17 -> 2 | H22: Edad del Asegurado Titular | I22: =+'INGRESO DE DATOS'!$D$19 -> 32
D24: Número de niños en la póliza | F24: =+'INGRESO DE DATOS'!$H$17 -> 2 | H24: Edad del/la conyuge | I24: =+'INGRESO DE DATOS'!$H$19 -> 46
G26: Fecha de la cotización : | H26: =NOW() -> 2021-05-25T14:54:15.840
H27: FALSE
E28: DEDUCIBLES | G28: PLAN 1 | H28: PLAN 2 | I28: PLAN 3 | J28: PLAN 4 | K28: PLAN 5 | L28: PLAN 6
E29: En el país de residencia | G29: 500 | H29: 1000 | I29: 1000 | J29: 1000 | K29: 10000 | L29: 20000
E30: Fuera del país de residencia | G30: 2000 | H30: 5000 | I30: 10000 | J30: 20000 | K30: 10000 | L30: 20000
E32: Tarifas anuales
E33: Prima para Asegurado Titular | G33: =VLOOKUP($I$22,Tablas!$A$905:$G$971,3,TRUE) -> 2049 | H33: =VLOOKUP($I$22,Tablas!$A$905:$G$971,4,TRUE) -> 1845 | I33: =VLOOKUP($I$22,Tablas!$A$905:$G$971,5,TRUE) -> 1678 | J33: =VLOOKUP($I$22,Tablas!$A$905:$G$971,6,TRUE) -> 1501 | K33: =VLOOKUP($I$22,Tablas!$A$905:$G$971,7,TRUE) -> 1398 | L33: =VLOOKUP($I$22,Tablas!$A$905:$H$971,8,TRUE) -> 1104
E34: Prima para conyuge | G34: =IF($F$22=1,0,(VLOOKUP($I$24,Tablas!$A$905:$G$971,3,TRUE))) -> 2907 | H34: =IF($F$22=1,0,(VLOOKUP($I$24,Tablas!$A$905:$G$971,4,TRUE))) -> 2619 | I34: =IF($F$22=1,0,(VLOOKUP($I$24,Tablas!$A$905:$G$971,5,TRUE))) -> 2381 | J34: =IF($F$22=1,0,(VLOOKUP($I$24,Tablas!$A$905:$G$971,6,TRUE))) -> 2130 | K34: =IF($F$22=1,0,(VLOOKUP($I$24,Tablas!$A$905:$G$971,7,TRUE))) -> 1984 | L34: =IF($F$22=1,0,(VLOOKUP($I$24,Tablas!$A$905:$H$971,8,TRUE))) -> 1566
E35: Prima para hijo (s) | G35: =IF($F$24=0,0,(VLOOKUP($F$24,Tablas!$A$972:$G$974,3,TRUE))) -> 1160 | H35: =IF($F$24=0,0,(VLOOKUP($F$24,Tablas!$A$972:$G$974,4,TRUE))) -> 1045 | I35: =IF($F$24=0,0,(VLOOKUP($F$24,Tablas!$A$972:$G$974,5,TRUE))) -> 950 | J35: =IF($F$24=0,0,(VLOOKUP($F$24,Tablas!$A$972:$G$974,6,TRUE))) -> 850 | K35: =IF($F$24=0,0,(VLOOKUP($F$24,Tablas!$A$972:$G$974,7,TRUE))) -> 792 | L35: =IF($F$24=0,0,(VLOOKUP($F$24,Tablas!$A$972:$H$974,8,TRUE))) -> 625
E36: Total de Prima neta | G36: =SUM(G33:G35) -> 6116 | H36: =SUM(H33:H35) -> 5509 | I36: 5009 | J36: =SUM(J33:J35) -> 4481 | K36: 4174 | L36: 3295
E37: Tarifa administrativa anual | G37: 75 | H37: 75 | I37: 75 | J37: 75 | K37: 75 | L37: 75
E38: VAT (5%) : | G38: =+G36*5% -> 305.8 | H38: =+H36*5% -> 275.45 | I38: 250.45 | J38: =+J36*5% -> 224.05 | K38: 208.7 | L38: 164.75
E39: ITBMS (7%) | G39: =+G37*7% -> 5.25 | H39: =+H37*7% -> 5.25 | I39: 5.25 | J39: =+J37*7% -> 5.25 | K39: 5.25 | L39: 5.25
E40: TOTAL ANUAL | G40: =SUM(G36:G39) -> 6502.05 | H40: =SUM(H36:H39) -> 5864.7 | I40: 5339.7 | J40: =SUM(J36:J39) -> 4785.3 | K40: 4462.95 | L40: 3540
E42: Tarifas Semianuales
E43: Prima para Asegurado Titular | G43: =VLOOKUP($I$22,Tablas!$A$1428:$G$1494,3,TRUE) -> 1085.97 | H43: =VLOOKUP($I$22,Tablas!$A$1428:$G$1494,4,TRUE) -> 977.85 | I43: =VLOOKUP($I$22,Tablas!$A$1428:$G$1494,5,TRUE) -> 889.34 | J43: =VLOOKUP($I$22,Tablas!$A$1428:$G$1494,6,TRUE) -> 795.53 | K43: =VLOOKUP($I$22,Tablas!$A$1428:$G$1494,7,TRUE) -> 740.94 | L43: =VLOOKUP($I$22,Tablas!$A$1428:$H$1494,8,TRUE) -> 585.12
E44: Prima para conyuge | G44: =IF($F$22=1,0,(VLOOKUP($I$24,Tablas!$A$1428:$G$1494,3,TRUE))) -> 1540.71 | H44: =IF($F$22=1,0,(VLOOKUP($I$24,Tablas!$A$1428:$G$1494,4,TRUE))) -> 1388.07 | I44: =IF($F$22=1,0,(VLOOKUP($I$24,Tablas!$A$1428:$G$1494,5,TRUE))) -> 1261.93 | J44: =IF($F$22=1,0,(VLOOKUP($I$24,Tablas!$A$1428:$G$1494,6,TRUE))) -> 1128.9 | K44: =IF($F$22=1,0,(VLOOKUP($I$24,Tablas!$A$1428:$G$1494,7,TRUE))) -> 1051.52 | L44: =IF($F$22=1,0,(VLOOKUP($I$24,Tablas!$A$1428:$H$1494,8,TRUE))) -> 829.98
E45: Prima para hijo (s) | G45: =IF($F$24=0,0,(VLOOKUP($F$24,Tablas!$A$1495:$G$1497,3,TRUE))) -> 614.8 | H45: =IF($F$24=0,0,(VLOOKUP($F$24,Tablas!$A$1495:$G$1497,4,TRUE))) -> 553.85 | I45: =IF($F$24=0,0,(VLOOKUP($F$24,Tablas!$A$1495:$G$1497,5,TRUE))) -> 503.5 | J45: =IF($F$24=0,0,(VLOOKUP($F$24,Tablas!$A$1495:$G$1497,6,TRUE))) -> 450.5 | K45: =IF($F$24=0,0,(VLOOKUP($F$24,Tablas!$A$1495:$G$1497,7,TRUE))) -> 419.76 | L45: =IF($F$24=0,0,(VLOOKUP($F$24,Tablas!$A$1495:$H$1497,8,TRUE))) -> 331.25
E46: Total de Prima neta | G46: =SUM(G43:G45) -> 3241.48 | H46: =SUM(H43:H45) -> 2919.77 | I46: =SUM(I43:I45) -> 2654.77 | J46: =SUM(J43:J45) -> 2374.93 | K46: 2212.22 | L46: 1746.35
E47: Tarifa administrativa anual | G47: 75 | H47: 75 | I47: 75 | J47: 75 | K47: 75 | L47: 75
E48: VAT (5%) : | G48: =(G33+G34+G35)*5%/2 -> 152.9 | H48: 137.725 | I48: 125.225 | J48: 112.025 | K48: 104.35 | L48: 82.375
E49: ITBMS (7%) | G49: =+G47*7% + ((G33+G34+G35)*0.06*0.07)/2 -> 18.0936 | H49: 16.8189 | I49: 15.7689 | J49: 14.6601 | K49: 14.0154 | L49: 12.1695
E50: TOTAL de primera cuota | G50: =SUM(G46:G49) -> 3487.4736 | H50: =SUM(H46:H49) -> 3149.3139 | I50: 2870.7639 | J50: =SUM(J46:J49) -> 2576.6151 | K50: 2405.5854 | L50: 1915.8945
E51: Costo de segunda cuota | G51: =(G46 + G48)+((G33+G34+G35)*0.06*0.07)/2 -> 3407.2236 | H51: =(H46 + H48)+((H33+H34+H35)*0.06*0.07)/2 -> 3069.0639 | I51: 2790.5139 | J51: 2496.3651 | K51: 2325.3354 | L51: 1835.6445
E52: TOTAL ANUAL | G52: =G50+G51 -> 6894.6972 | H52: =H50+H51 -> 6218.3778 | I52: 5661.2778 | J52: =J50+J51 -> 5072.9802 | K52: 4730.9208 | L52: 3751.539
E54: Tarifas Trimestrales
E55: Prima para Asegurado Titular | G55: =VLOOKUP($I$22,Tablas!$A$1054:$G$1120,3,TRUE) -> 563.475 | H55: =VLOOKUP($I$22,Tablas!$A$1054:$G$1120,4,TRUE) -> 507.375 | I55: =VLOOKUP($I$22,Tablas!$A$1054:$G$1120,5,TRUE) -> 461.45 | J55: =VLOOKUP($I$22,Tablas!$A$1054:$G$1120,6,TRUE) -> 412.775 | K55: =VLOOKUP($I$22,Tablas!$A$1054:$G$1120,7,TRUE) -> 384.45 | L55: =VLOOKUP($I$22,Tablas!$A$1054:$H$1120,8,TRUE) -> 303.6
E56: Prima para conyuge | G56: =IF($F$22=1,0,(VLOOKUP($I$24,Tablas!$A$1054:$G$1120,3,TRUE))) -> 799.425 | H56: =IF($F$22=1,0,(VLOOKUP($I$24,Tablas!$A$1054:$G$1120,4,TRUE))) -> 720.225 | I56: =IF($F$22=1,0,(VLOOKUP($I$24,Tablas!$A$1054:$G$1120,5,TRUE))) -> 654.775 | J56: =IF($F$22=1,0,(VLOOKUP($I$24,Tablas!$A$1054:$G$1120,6,TRUE))) -> 585.75 | K56: =IF($F$22=1,0,(VLOOKUP($I$24,Tablas!$A$1054:$G$1120,7,TRUE))) -> 545.6 | L56: =IF($F$22=1,0,(VLOOKUP($I$24,Tablas!$A$1054:$H$1120,8,TRUE))) -> 430.65
E57: Prima para hijo (s) | G57: =IF($F$24=0,0,(VLOOKUP($F$24,Tablas!$A$1121:$G$1123,3,TRUE))) -> 319 | H57: =IF($F$24=0,0,(VLOOKUP($F$24,Tablas!$A$1121:$G$1123,4,TRUE))) -> 287.375 | I57: =IF($F$24=0,0,(VLOOKUP($F$24,Tablas!$A$1121:$G$1123,5,TRUE))) -> 261.25 | J57: =IF($F$24=0,0,(VLOOKUP($F$24,Tablas!$A$1121:$G$1123,6,TRUE))) -> 233.75 | K57: =IF($F$24=0,0,(VLOOKUP($F$24,Tablas!$A$1121:$G$1123,7,TRUE))) -> 217.8 | L57: =IF($F$24=0,0,(VLOOKUP($F$24,Tablas!$A$1121:$H$1123,8,TRUE))) -> 171.875
E58: Total de Prima neta | G58: =SUM(G55:G57) -> 1681.9 | H58: =SUM(H55:H57) -> 1514.975 | I58: =SUM(I55:I57) -> 1377.475 | J58: =SUM(J55:J57) -> 1232.275 | K58: 1147.85 | L58: 906.125
E59: Tarifa administrativa anual | G59: 75 | H59: 75 | I59: 75 | J59: 75 | K59: 75 | L59: 75
E60: VAT (5%) : | G60: =(G33+G34+G35)*5%/4 -> 76.45 | H60: 68.8625 | I60: 62.6125 | J60: 56.0125 | K60: 52.175 | L60: 41.1875
E61: ITBMS (7%) | G61: =+G59*7% + ((G33+G34+G35)*0.1*0.07)/4 -> 15.953 | H61: 14.89075 | I61: 14.01575 | J61: 13.09175 | K61: 12.5545 | L61: 11.01625
E62: TOTAL de primera cuota | G62: =SUM(G58:G61) -> 1849.303 | H62: =SUM(H58:H61) -> 1673.72825 | I62: 1529.10325 | J62: =SUM(J58:J61) -> 1376.37925 | K62: 1287.5795 | L62: 1033.32875
E63: Costo de tarifa trimestral 2 a 4 | G63: =(G58 + G60)+((G33+G34+G35)*0.1*0.07)/4 -> 1769.053 | H63: 1593.47825 | I63: 1448.85325 | J63: 1296.12925 | K63: 1207.3295 | L63: 953.07875
E64: TOTAL ANUAL | G64: =G62+(G63*3) -> 7156.462 | H64: =H62+(H63*3) -> 6454.163 | I64: 5875.663 | J64: =J62+(J63*3) -> 5264.767 | K64: 4909.568 | L64: 3892.565
E66: Tarifas Mensuales
E67: Prima para Asegurado Titular | G67: =VLOOKUP($I$22,Tablas!$A$979:$G$1045,3,TRUE) -> 191.24 | H67: =VLOOKUP($I$22,Tablas!$A$979:$G$1045,4,TRUE) -> 172.2 | I67: =VLOOKUP($I$22,Tablas!$A$979:$G$1045,5,TRUE) -> 156.6133333 | J67: =VLOOKUP($I$22,Tablas!$A$979:$G$1045,6,TRUE) -> 140.0933333 | K67: =VLOOKUP($I$22,Tablas!$A$979:$G$1045,7,TRUE) -> 130.48 | L67: =VLOOKUP($I$22,Tablas!$A$979:$H$1045,8,TRUE) -> 103.04
E68: Prima para conyuge | G68: =IF($F$22=1,0,(VLOOKUP($I$24,Tablas!$A$979:$G$1045,3,TRUE))) -> 271.32 | H68: =IF($F$22=1,0,(VLOOKUP($I$24,Tablas!$A$979:$G$1045,4,TRUE))) -> 244.44 | I68: =IF($F$22=1,0,(VLOOKUP($I$24,Tablas!$A$979:$G$1045,5,TRUE))) -> 222.2266667 | J68: =IF($F$22=1,0,(VLOOKUP($I$24,Tablas!$A$979:$G$1045,6,TRUE))) -> 198.8 | K68: =IF($F$22=1,0,(VLOOKUP($I$24,Tablas!$A$979:$G$1045,7,TRUE))) -> 185.1733333 | L68: =IF($F$22=1,0,(VLOOKUP($I$24,Tablas!$A$979:$H$1045,8,TRUE))) -> 146.16
E69: Prima para hijo (s) | G69: =IF($F$24=0,0,(VLOOKUP($F$24,Tablas!$A$1046:$G$1048,3,TRUE))) -> 108.2666667 | H69: =IF($F$24=0,0,(VLOOKUP($F$24,Tablas!$A$1046:$G$1048,4,TRUE))) -> 97.53333333 | I69: =IF($F$24=0,0,(VLOOKUP($F$24,Tablas!$A$1046:$G$1048,5,TRUE))) -> 88.66666667 | J69: =IF($F$24=0,0,(VLOOKUP($F$24,Tablas!$A$1046:$G$1048,6,TRUE))) -> 79.33333333 | K69: =IF($F$24=0,0,(VLOOKUP($F$24,Tablas!$A$1046:$G$1048,7,TRUE))) -> 73.92 | L69: =IF($F$24=0,0,(VLOOKUP($F$24,Tablas!$A$1046:$H$1048,8,TRUE))) -> 58.33333333
E70: Total de Prima neta | G70: =SUM(G67:G69) -> 570.8266667 | H70: =SUM(H67:H69) -> 514.1733333 | I70: =SUM(I67:I69) -> 467.5066667 | J70: =SUM(J67:J69) -> 418.2266667 | K70: 389.5733333 | L70: 307.5333333
E71: Tarifa administrativa anual | G71: 75 | H71: 75 | I71: 75 | J71: 75 | K71: 75 | L71: 75
E72: VAT (5%) : | G72: =(G33+G34+G35)*5%/12 -> 25.48333333 | H72: 22.95416667 | I72: 20.87083333 | J72: 18.67083333 | K72: 17.39166667 | L72: 13.72916667
E73: ITBMS (7%) | G73: =+G71*7% + ((G33+G34+G35)*0.12*0.07)/12 -> 9.5312 | H73: 9.1063 | I73: 8.7563 | J73: 8.3867 | K73: 8.1718 | L73: 7.5565
E74: TOTAL de primera cuota | G74: =SUM(G70:G73) -> 680.8412 | H74: =SUM(H70:H73) -> 621.2338 | I74: 572.1338 | J74: =SUM(J70:J73) -> 520.2842 | K74: 490.1368 | L74: 403.819
E75: Costo de Tarifa mensual de 2 a 12 | G75: =(G70 + G72)+((G33+G34+G35)*0.12*0.07)/12 -> 600.5912 | H75: 540.9838 | I75: 491.8838 | J75: 440.0342 | K75: 409.8868 | L75: 323.569
E76: TOTAL ANUAL | G76: =G74+(G75*11) -> 7287.3444 | H76: =H74+(H75*11) -> 6572.0556 | I76: 5982.8556 | J76: =J74+(J75*11) -> 5360.6604 | K76: 4998.8916 | L76: 3963.078
E78: Tarifas en US$ - Efectivas a partir del 15 de agosto, 2020

Sheet Resumen tarifas
A17: Cotizador de Seguro Médico - Bupa Global Health Plans
A19: Nombre del Asegurado Titular | C19: =+'INGRESO DE DATOS'!$D$15 -> NOMBRE DEL CLIENTE
A22: Número de adultos en la póliza | C22: =+'INGRESO DE DATOS'!$D$17 -> 2 | E22: Edad del Asegurado Titular | G22: =+'INGRESO DE DATOS'!$D$19 -> 32
A25: Número de niños en la póliza | C25: =+'INGRESO DE DATOS'!$H$17 -> 2 | E25: Edad del/la cónyuge | G25: =+'INGRESO DE DATOS'!$H$19 -> 46
D28: FECHA DE LA COTIZACIÓN | E28: =NOW() -> 2021-05-25T14:54:15.840
A30: Bupa Essential Care
A31: DEDUCIBLES | C31: PLAN 1 | D31: PLAN 2 | E31: PLAN 3 | F31: PLAN 4 | G31: PLAN 5 | H31: PLAN 6
A32: En el país de residencia | C32: 500 | D32: 1000 | E32: 1000 | F32: 1000 | G32: 10000 | H32: 20000
A33: Fuera del país de residencia | C33: 2000 | D33: 5000 | E33: 10000 | F33: 20000 | G33: 10000 | H33: 20000
C34: Tarifas Anuales
C35: ='Bupa Essential Care'!G40 -> 6502.05 | D35: ='Bupa Essential Care'!H40 -> 5864.7 | E35: ='Bupa Essential Care'!I40 -> 5339.7 | F35: ='Bupa Essential Care'!J40 -> 4785.3 | G35: ='Bupa Essential Care'!K40 -> 4462.95 | H35: ='Bupa Essential Care'!L40 -> 3540
C36: Tarifas Semianuales
C37: ='Bupa Essential Care'!G52 -> 6894.6972 | D37: ='Bupa Essential Care'!H52 -> 6218.3778 | E37: ='Bupa Essential Care'!I52 -> 5661.2778 | F37: ='Bupa Essential Care'!J52 -> 5072.9802 | G37: ='Bupa Essential Care'!K52 -> 4730.9208 | H37: ='Bupa Essential Care'!L52 -> 3751.539
C38: Tarifas Trimestrales
C39: ='Bupa Essential Care'!G64 -> 7156.462 | D39: ='Bupa Essential Care'!H64 -> 6454.163 | E39: ='Bupa Essential Care'!I64 -> 5875.663 | F39: ='Bupa Essential Care'!J64 -> 5264.767 | G39: ='Bupa Essential Care'!K64 -> 4909.568 | H39: ='Bupa Essential Care'!L64 -> 3892.565
C40: Tarifas Mensuales
C41: ='Bupa Essential Care'!G76 -> 7287.3444 | D41: ='Bupa Essential Care'!H76 -> 6572.0556 | E41: ='Bupa Essential Care'!I76 -> 5982.8556 | F41: ='Bupa Essential Care'!J76 -> 5360.6604 | G41: ='Bupa Essential Care'!K76 -> 4998.8916 | H41: ='Bupa Essential Care'!L76 -> 3963.078
A44: Una tarifa administrativa de US$75 se cargará automáticamente al primer pago
A45: *Basado en un modo de pago anual
A47: Tarifas en US$ - Efectivas a partir del 15 de agosto, 2020

Sheet Tablas (hidden)
A2: BUPA GLOBAL ELITE | I2: FACTOR MENSUAL: | K2: 0.08333333333 | N2: 0.09333333333
A3: TARIFAS ANUALES | I3: FACTOR TRIMESTRAL: | K3: 0.25 | N3: 0.275
A4: EDAD | I4: FACTOR SEMIANUAL: | K4: 0.5 | N4: 0.53
C5: 1000 | D5: 2000 | E5: 3500 | F5: 5000 | G5: 10000
A6: 18 | C6: 7418 | D6: 5313 | E6: 4499 | F6: 3901 | G6: 3026
A7: 19 | C7: 7516 | D7: 5377 | E7: 4546 | F7: 3943 | G7: 3058
A8: 20 | C8: 7616 | D8: 5445 | E8: 4597 | F8: 3986 | G8: 3091
A9: 21 | C9: 7719 | D9: 5514 | E9: 4649 | F9: 4031 | G9: 3126
A10: 22 | C10: 7826 | D10: 5586 | E10: 4702 | F10: 4077 | G10: 3161
A11: 23 | C11: 7939 | D11: 5658 | E11: 4759 | F11: 4127 | G11: 3201
A12: 24 | C12: 8051 | D12: 5735 | E12: 4816 | F12: 4176 | G12: 3239
A13: 25 | C13: 8168 | D13: 5815 | E13: 4875 | F13: 4228 | G13: 3279
A14: 26 | C14: 8336 | D14: 5929 | E14: 4962 | F14: 4304 | G14: 3337
A15: 27 | C15: 8511 | D15: 6048 | E15: 5054 | F15: 4381 | G15: 3399
A16: 28 | C16: 8691 | D16: 6170 | E16: 5148 | F16: 4464 | G16: 3461
A17: 29 | C17: 8880 | D17: 6298 | E17: 5247 | F17: 4550 | G17: 3529
A18: 30 | C18: 9074 | D18: 6433 | E18: 5351 | F18: 4640 | G18: 3599
A19: 31 | C19: 9275 | D19: 6570 | E19: 5459 | F19: 4733 | G19: 3672
A20: 32 | C20: 9481 | D20: 6713 | E20: 5568 | F20: 4828 | G20: 3743
A21: 33 | C21: 9694 | D21: 6860 | E21: 5684 | F21: 4928 | G21: 3823
A22: 34 | C22: 9914 | D22: 7012 | E22: 5802 | F22: 5031 | G22: 3901
A23: 35 | C23: 10138 | D23: 7168 | E23: 5926 | F23: 5139 | G23: 3986
A24: 36 | C24: 10370 | D24: 7329 | E24: 6052 | F24: 5247 | G24: 4070
A25: 37 | C25: 10609 | D25: 7497 | E25: 6182 | F25: 5362 | G25: 4158
A26: 38 | C26: 10853 | D26: 7666 | E26: 6317 | F26: 5479 | G26: 4249
A27: 39 | C27: 11105 | D27: 7843 | E27: 6456 | F27: 5598 | G27: 4341
A28: 40 | C28: 11362 | D28: 8023 | E28: 6598 | F28: 5721 | G28: 4438
A29: 41 | C29: 11626 | D29: 8208 | E29: 6745 | F29: 5849 | G29: 4537
A30: 42 | C30: 11895 | D30: 8397 | E30: 6896 | F30: 5979 | G30: 4638
A31: 43 | C31: 12170 | D31: 8593 | E31: 7051 | F31: 6114 | G31: 4742
A32: 44 | C32: 12453 | D32: 8790 | E32: 7208 | F32: 6251 | G32: 4849
A33: 45 | C33: 12742 | D33: 8995 | E33: 7372 | F33: 6391 | G33: 4957
A34: 46 | C34: 13037 | D34: 9203 | E34: 7539 | F34: 6538 | G34: 5069
A35: 47 | C35: 13338 | D35: 9418 | E35: 7708 | F35: 6683 | G35: 5184
A36: 48 | C36: 13646 | D36: 9634 | E36: 7882 | F36: 6834 | G36: 5300
A37: 49 | C37: 13961 | D37: 9858 | E37: 8061 | F37: 6990 | G37: 5420
A38: 50 | C38: 14280 | D38: 10084 | E38: 8244 | F38: 7149 | G38: 5544
A39: 51 | C39: 14607 | D39: 10316 | E39: 8432 | F39: 7311 | G39: 5669
A40: 52 | C40: 14939 | D40: 10553 | E40: 8619 | F40: 7473 | G40: 5797
A41: 53 | C41: 15279 | D41: 10797 | E41: 8815 | F41: 7643 | G41: 5928
A42: 54 | C42: 15625 | D42: 11043 | E42: 9012 | F42: 7814 | G42: 6061
A43: 55 | C43: 15977 | D43: 11293 | E43: 9215 | F43: 7990 | G43: 6197
A44: 56 | C44: 16333 | D44: 11548 | E44: 9421 | F44: 8169 | G44: 6336
A45: 57 | C45: 16699 | D45: 11808 | E45: 9631 | F45: 8350 | G45: 6476
A46: 58 | C46: 17070 | D46: 12073 | E46: 9845 | F46: 8536 | G46: 6620
A47: 59 | C47: 17446 | D47: 12343 | E47: 10062 | F47: 8725 | G47: 6766
A48: 60 | C48: 17829 | D48: 12618 | E48: 10285 | F48: 8917 | G48: 6916
A49: 61 | C49: 19842 | D49: 14061 | E49: 11454 | F49: 9932 | G49: 7704
A50: 62 | C50: 22011 | D50: 15624 | E50: 12724 | F50: 11033 | G50: 8556
A51: 63 | C51: 24339 | D51: 17302 | E51: 14091 | F51: 12218 | G51: 9476
A52: 64 | C52: 26824 | D52: 19100 | E52: 15557 | F52: 13490 | G52: 10463
A53: 65 | C53: 29466 | D53: 21015 | E53: 17123 | F53: 14847 | G53: 11515
A54: 66 | C54: 32267 | D54: 23047 | E54: 18789 | F54: 16293 | G54: 12636
A55: 67 | C55: 35226 | D55: 25197 | E55: 20553 | F55: 17822 | G55: 13822
A56: 68 | C56: 38343 | D56: 27466 | E56: 22415 | F56: 19436 | G56: 15074
A57: 69 | C57: 41616 | D57: 29852 | E57: 24379 | F57: 21139 | G57: 16394
A58: 70 | C58: 45049 | D58: 32357 | E58: 26441 | F58: 22927 | G58: 17782
A59: 71 | C59: 48640 | D59: 34979 | E59: 28602 | F59: 24801 | G59: 19235
A60: 72 | C60: 52387 | D60: 37721 | E60: 30862 | F60: 26760 | G60: 20754
A61: 73 | C61: 56292 | D61: 40578 | E61: 33220 | F61: 28805 | G61: 22340
A62: 74 | C62: 60356 | D62: 43554 | E62: 35679 | F62: 30938 | G62: 23994
A63: 75 | C63: 64577 | D63: 46649 | E63: 38237 | F63: 33155 | G63: 25713
A64: 76 | C64: 64577 | D64: 46649 | E64: 38237 | F64: 33155 | G64: 25713
A65: 77 | C65: 64577 | D65: 46649 | E65: 38237 | F65: 33155 | G65: 25713
A66: 78 | C66: 64577 | D66: 46649 | E66: 38237 | F66: 33155 | G66: 25713
A67: 79 | C67: 64577 | D67: 46649 | E67: 38237 | F67: 33155 | G67: 25713
A68: 80 | C68: 64577 | D68: 46649 | E68: 38237 | F68: 33155 | G68: 25713
A69: 81 | C69: 64577 | D69: 46649 | E69: 38237 | F69: 33155 | G69: 25713
A70: 82 | C70: 64577 | D70: 46649 | E70: 38237 | F70: 33155 | G70: 25713
A71: 83 | C71: 64577 | D71: 46649 | E71: 38237 | F71: 33155 | G71: 25713
A72: 84 | B72: o más | C72: 64577 | D72: 46649 | E72: 38237 | F72: 33155 | G72: 25713
A73: 1 | B73: Hijo | C73: 3339 | D73: 2391 | E73: 2025 | F73: 1756 | G73: 1363
A74: 2 | B74: Hijos | C74: 5675 | D74: 4065 | E74: 3442 | F74: 2984 | G74: 2316
A75: 3 | B75: Hijos o más | C75: 8011 | D75: 5738 | E75: 4860 | F75: 4213 | G75: 3268
A77: BUPA GLOBAL ELITE - MENSUALES
A78: EDAD
C79: 1000 | D79: 2000 | E79: 3500
A80: 18 | C80: =C6*$K$2 -> 618.1666667 | D80: =D6*$K$2 -> 442.75 | E80: 374.9166667 | F80: 325.0833333 | G80: 252.1666667
A81: 19 | C81: =C7*$K$2 -> 626.3333333 | D81: 448.0833333 | E81: 378.8333333 | F81: 328.5833333 | G81: 254.8333333
A82: 20 | C82: =C8*$K$2 -> 634.6666667 | D82: 453.75 | E82: 383.0833333 | F82: 332.1666667 | G82: 257.5833333
A83: 21 | C83: =C9*$K$2 -> 643.25 | D83: 459.5 | E83: 387.4166667 | F83: 335.9166667 | G83: 260.5
A84: 22 | C84: =C10*$K$2 -> 652.1666667 | D84: 465.5 | E84: 391.8333333 | F84: 339.75 | G84: 263.4166667
A85: 23 | C85: =C11*$K$2 -> 661.5833333 | D85: 471.5 | E85: 396.5833333 | F85: 343.9166667 | G85: 266.75
A86: 24 | C86: =C12*$K$2 -> 670.9166667 | D86: 477.9166667 | E86: 401.3333333 | F86: 348 | G86: 269.9166667
A87: 25 | C87: =C13*$K$2 -> 680.6666667 | D87: 484.5833333 | E87: 406.25 | F87: 352.3333333 | G87: 273.25
A88: 26 | C88: =C14*$K$2 -> 694.6666667 | D88: 494.0833333 | E88: 413.5 | F88: 358.6666667 | G88: 278.0833333
A89: 27 | C89: =C15*$K$2 -> 709.25 | D89: 504 | E89: 421.1666667 | F89: 365.0833333 | G89: 283.25
A90: 28 | C90: =C16*$K$2 -> 724.25 | D90: 514.1666667 | E90: 429 | F90: 372 | G90: 288.4166667
A91: 29 | C91: =C17*$K$2 -> 740 | D91: 524.8333333 | E91: 437.25 | F91: 379.1666667 | G91: 294.0833333
A92: 30 | C92: =C18*$K$2 -> 756.1666667 | D92: 536.0833333 | E92: 445.9166667 | F92: 386.6666667 | G92: 299.9166667
A93: 31 | C93: =C19*$K$2 -> 772.9166667 | D93: 547.5 | E93: 454.9166667 | F93: 394.4166667 | G93: 306
A94: 32 | C94: =C20*$K$2 -> 790.0833333 | D94: 559.4166667 | E94: 464 | F94: 402.3333333 | G94: 311.9166667
A95: 33 | C95: =C21*$K$2 -> 807.8333333 | D95: 571.6666667 | E95: 473.6666667 | F95: 410.6666667 | G95: 318.5833333
A96: 34 | C96: =C22*$K$2 -> 826.1666667 | D96: 584.3333333 | E96: 483.5 | F96: 419.25 | G96: 325.0833333
A97: 35 | C97: =C23*$K$2 -> 844.8333333 | D97: 597.3333333 | E97: 493.8333333 | F97: 428.25 | G97: 332.1666667
A98: 36 | C98: =C24*$K$2 -> 864.1666667 | D98: 610.75 | E98: 504.3333333 | F98: 437.25 | G98: 339.1666667
A99: 37 | C99: =C25*$K$2 -> 884.0833333 | D99: 624.75 | E99: 515.1666667 | F99: 446.8333333 | G99: 346.5
A100: 38 | C100: =C26*$K$2 -> 904.4166667 | D100: 638.8333333 | E100: 526.4166667 | F100: 456.5833333 | G100: 354.0833333
A101: 39 | C101: =C27*$K$2 -> 925.4166667 | D101: 653.5833333 | E101: 538 | F101: 466.5 | G101: 361.75
A102: 40 | C102: =C28*$K$2 -> 946.8333333 | D102: 668.5833333 | E102: 549.8333333 | F102: 476.75 | G102: 369.8333333
A103: 41 | C103: =C29*$K$2 -> 968.8333333 | D103: 684 | E103: 562.0833333 | F103: 487.4166667 | G103: 378.0833333
A104: 42 | C104: =C30*$K$2 -> 991.25 | D104: 699.75 | E104: 574.6666667 | F104: 498.25 | G104: 386.5
A105: 43 | C105: =C31*$K$2 -> 1014.166667 | D105: 716.0833333 | E105: 587.5833333 | F105: 509.5 | G105: 395.1666667
A106: 44 | C106: =C32*$K$2 -> 1037.75 | D106: 732.5 | E106: 600.6666667 | F106: 520.9166667 | G106: 404.0833333
A107: 45 | C107: =C33*$K$2 -> 1061.833333 | D107: 749.5833333 | E107: 614.3333333 | F107: 532.5833333 | G107: 413.0833333
A108: 46 | C108: =C34*$K$2 -> 1086.416667 | D108: 766.9166667 | E108: 628.25 | F108: 544.8333333 | G108: 422.4166667
A109: 47 | C109: =C35*$K$2 -> 1111.5 | D109: 784.8333333 | E109: 642.3333333 | F109: 556.9166667 | G109: 432
A110: 48 | C110: =C36*$K$2 -> 1137.166667 | D110: 802.8333333 | E110: 656.8333333 | F110: 569.5 | G110: 441.6666667
A111: 49 | C111: =C37*$K$2 -> 1163.416667 | D111: 821.5 | E111: 671.75 | F111: 582.5 | G111: 451.6666667
A112: 50 | C112: =C38*$K$2 -> 1190 | D112: 840.3333333 | E112: 687 | F112: 595.75 | G112: 462
A113: 51 | C113: =C39*$K$2 -> 1217.25 | D113: 859.6666667 | E113: 702.6666667 | F113: 609.25 | G113: 472.4166667
A114: 52 | C114: =C40*$K$2 -> 1244.916667 | D114: 879.4166667 | E114: 718.25 | F114: 622.75 | G114: 483.0833333
A115: 53 | C115: =C41*$K$2 -> 1273.25 | D115: 899.75 | E115: 734.5833333 | F115: 636.9166667 | G115: 494
A116: 54 | C116: =C42*$K$2 -> 1302.083333 | D116: 920.25 | E116: 751 | F116: 651.1666667 | G116: 505.0833333
A117: 55 | C117: =C43*$K$2 -> 1331.416667 | D117: 941.0833333 | E117: 767.9166667 | F117: 665.8333333 | G117: 516.4166667
A118: 56 | C118: =C44*$K$2 -> 1361.083333 | D118: 962.3333333 | E118: 785.0833333 | F118: 680.75 | G118: 528
A119: 57 | C119: =C45*$K$2 -> 1391.583333 | D119: 984 | E119: 802.5833333 | F119: 695.8333333 | G119: 539.6666667
A120: 58 | C120: =C46*$K$2 -> 1422.5 | D120: 1006.083333 | E120: 820.4166667 | F120: 711.3333333 | G120: 551.6666667
A121: 59 | C121: =C47*$K$2 -> 1453.833333 | D121: 1028.583333 | E121: 838.5 | F121: 727.0833333 | G121: 563.8333333
A122: 60 | C122: =C48*$K$2 -> 1485.75 | D122: 1051.5 | E122: 857.0833333 | F122: 743.0833333 | G122: 576.3333333
A123: 61 | C123: =C49*$K$2 -> 1653.5 | D123: 1171.75 | E123: 954.5 | F123: 827.6666667 | G123: 642
A124: 62 | C124: =C50*$K$2 -> 1834.25 | D124: 1302 | E124: 1060.333333 | F124: 919.4166667 | G124: 713
A125: 63 | C125: =C51*$K$2 -> 2028.25 | D125: 1441.833333 | E125: 1174.25 | F125: 1018.166667 | G125: 789.6666667
A126: 64 | C126: =C52*$K$2 -> 2235.333333 | D126: 1591.666667 | E126: 1296.416667 | F126: 1124.166667 | G126: 871.9166667
A127: 65 | C127: =C53*$K$2 -> 2455.5 | D127: 1751.25 | E127: 1426.916667 | F127: 1237.25 | G127: 959.5833333
A128: 66 | C128: =C54*$K$2 -> 2688.916667 | D128: 1920.583333 | E128: 1565.75 | F128: 1357.75 | G128: 1053
A129: 67 | C129: =C55*$K$2 -> 2935.5 | D129: 2099.75 | E129: 1712.75 | F129: 1485.166667 | G129: 1151.833333
A130: 68 | C130: =C56*$K$2 -> 3195.25 | D130: 2288.833333 | E130: 1867.916667 | F130: 1619.666667 | G130: 1256.166667
A131: 69 | C131: =C57*$K$2 -> 3468 | D131: 2487.666667 | E131: 2031.583333 | F131: 1761.583333 | G131: 1366.166667
A132: 70 | C132: =C58*$K$2 -> 3754.083333 | D132: 2696.416667 | E132: 2203.416667 | F132: 1910.583333 | G132: 1481.833333
A133: 71 | C133: =C59*$K$2 -> 4053.333333 | D133: 2914.916667 | E133: 2383.5 | F133: 2066.75 | G133: 1602.916667
A134: 72 | C134: =C60*$K$2 -> 4365.583333 | D134: 3143.416667 | E134: 2571.833333 | F134: 2230 | G134: 1729.5
A135: 73 | C135: =C61*$K$2 -> 4691 | D135: 3381.5 | E135: 2768.333333 | F135: 2400.416667 | G135: 1861.666667
A136: 74 | C136: =C62*$K$2 -> 5029.666667 | D136: 3629.5 | E136: 2973.25 | F136: 2578.166667 | G136: 1999.5
A137: 75 | C137: =C63*$K$2 -> 5381.416667 | D137: 3887.416667 | E137: 3186.416667 | F137: 2762.916667 | G137: 2142.75
A138: 76 | C138: =C64*$K$2 -> 5381.416667 | D138: 3887.416667 | E138: 3186.416667 | F138: 2762.916667 | G138: 2142.75
A139: 77 | C139: =C65*$K$2 -> 5381.416667 | D139: 3887.416667 | E139: 3186.416667 | F139: 2762.916667 | G139: 2142.75
A140: 78 | C140: =C66*$K$2 -> 5381.416667 | D140: 3887.416667 | E140: 3186.416667 | F140: 2762.916667 | G140: 2142.75
A141: 79 | C141: =C67*$K$2 -> 5381.416667 | D141: 3887.416667 | E141: 3186.416667 | F141: 2762.916667 | G141: 2142.75
A142: 80 | C142: =C68*$K$2 -> 5381.416667 | D142: 3887.416667 | E142: 3186.416667 | F142: 2762.916667 | G142: 2142.75
A143: 81 | C143: =C69*$K$2 -> 5381.416667 | D143: 3887.416667 | E143: 3186.416667 | F143: 2762.916667 | G143: 2142.75
A144: 82 | C144: =C70*$K$2 -> 5381.416667 | D144: 3887.416667 | E144: 3186.416667 | F144: 2762.916667 | G144: 2142.75
A145: 83 | C145: =C71*$K$2 -> 5381.416667 | D145: 3887.416667 | E145: 3186.416667 | F145: 2762.916667 | G145: 2142.75
A146: 84 | B146: o más | C146: =C72*$K$2 -> 5381.416667 | D146: 3887.416667 | E146: 3186.416667 | F146: 2762.916667 | G146: 2142.75
A147: 1 | B147: Hijo | C147: =C73*$K$2 -> 278.25 | D147: 199.25 | E147: 168.75 | F147: 146.3333333 | G147: 113.5833333
A148: 2 | B148: Hijos | C148: =C74*$K$2 -> 472.9166667 | D148: 338.75 | E148: 286.8333333 | F148: 248.6666667 | G148: 193
A149: 3 | B149: Hijos o más | C149: =C75*$K$2 -> 667.5833333 | D149: 478.1666667 | E149: 405 | F149: 351.0833333 | G149: 272.3333333
A151: BUPA GLOBAL PREMIER
A152: TARIFAS ANUALES
A153: EDAD
C154: 2000 | D154: 3500 | E154: 5000 | F154: 10000
A155: 18 | C155: 4297 | D155: 3648 | E155: 3164 | F155: 2353
A156: 19 | C156: 4351 | D156: 3687 | E156: 3194 | F156: 2377
A157: 20 | C157: 4405 | D157: 3727 | E157: 3226 | F157: 2400
A158: 21 | C158: 4460 | D158: 3769 | E158: 3259 | F158: 2425
A159: 22 | C159: 4517 | D159: 3812 | E159: 3293 | F159: 2449
A160: 23 | C160: 4577 | D160: 3858 | E160: 3330 | F160: 2477
A161: 24 | C161: 4640 | D161: 3907 | E161: 3367 | F161: 2505
A162: 25 | C162: 4703 | D162: 3953 | E162: 3405 | F162: 2533
A163: 26 | C163: 4796 | D163: 4024 | E163: 3461 | F163: 2575
A164: 27 | C164: 4892 | D164: 4098 | E164: 3522 | F164: 2620
A165: 28 | C165: 4992 | D165: 4176 | E165: 3583 | F165: 2666
A166: 29 | C166: 5096 | D166: 4254 | E166: 3648 | F166: 2714
A167: 30 | C167: 5204 | D167: 4338 | E167: 3717 | F167: 2765
A168: 31 | C168: 5315 | D168: 4426 | E168: 3785 | F168: 2816
A169: 32 | C169: 5431 | D169: 4514 | E169: 3859 | F169: 2871
A170: 33 | C170: 5549 | D170: 4608 | E170: 3935 | F170: 2927
A171: 34 | C171: 5673 | D171: 4705 | E171: 4015 | F171: 2987
A172: 35 | C172: 5800 | D172: 4804 | E172: 4096 | F172: 3047
A173: 36 | C173: 5930 | D173: 4907 | E173: 4179 | F173: 3108
A174: 37 | C174: 6064 | D174: 5013 | E174: 4274 | F174: 3180
A175: 38 | C175: 6201 | D175: 5122 | E175: 4383 | F175: 3260
A176: 39 | C176: 6345 | D176: 5236 | E176: 4495 | F176: 3344
A177: 40 | C177: 6489 | D177: 5351 | E177: 4609 | F177: 3430
A178: 41 | C178: 6639 | D178: 5469 | E178: 4728 | F178: 3518
A179: 42 | C179: 6794 | D179: 5592 | E179: 4849 | F179: 3608
A180: 43 | C180: 6949 | D180: 5717 | E180: 4972 | F180: 3699
A181: 44 | C181: 7111 | D181: 5845 | E181: 5099 | F181: 3793
A182: 45 | C182: 7277 | D182: 5977 | E182: 5229 | F182: 3891
A183: 46 | C183: 7445 | D183: 6112 | E183: 5364 | F183: 3989
A184: 47 | C184: 7619 | D184: 6250 | E184: 5500 | F184: 4091
A185: 48 | C185: 7794 | D185: 6391 | E185: 5640 | F185: 4195
A186: 49 | C186: 7974 | D186: 6535 | E186: 5782 | F186: 4300
A187: 50 | C187: 8158 | D187: 6684 | E187: 5926 | F187: 4409
A188: 51 | C188: 8346 | D188: 6835 | E188: 6074 | F188: 4519
A189: 52 | C189: 8538 | D189: 6989 | E189: 6227 | F189: 4632
A190: 53 | C190: 8733 | D190: 7148 | E190: 6382 | F190: 4747
A191: 54 | C191: 8931 | D191: 7308 | E191: 6539 | F191: 4864
A192: 55 | C192: 9135 | D192: 7471 | E192: 6700 | F192: 4984
A193: 56 | C193: 9342 | D193: 7639 | E193: 6864 | F193: 5107
A194: 57 | C194: 9551 | D194: 7808 | E194: 7029 | F194: 5228
A195: 58 | C195: 9766 | D195: 7982 | E195: 7198 | F195: 5355
A196: 59 | C196: 9986 | D196: 8159 | E196: 7373 | F196: 5484
A197: 60 | C197: 10208 | D197: 8338 | E197: 7548 | F197: 5614
A198: 61 | C198: 11375 | D198: 9288 | E198: 8472 | F198: 6303
A199: 62 | C199: 12639 | D199: 10315 | E199: 9475 | F199: 7047
A200: 63 | C200: 13997 | D200: 11424 | E200: 10552 | F200: 7849
A201: 64 | C201: 15451 | D201: 12614 | E201: 11706 | F201: 8707
A202: 65 | C202: 17000 | D202: 13883 | E202: 12936 | F202: 9622
A203: 66 | C203: 18644 | D203: 15235 | E203: 14243 | F203: 10594
... 1275 more rows
